Cogmind - Beta 14 @@@ ROGUE MODE // 2025.02.20 @ 07:15:49 Player: Zeta Lockhart Result: Destroyed by B-60 Warrior with Heavy Mace Performance ------------- Evolutions (5) 2500 Regions Visited (14) 2800 Robots Destroyed (61) 305 Value Destroyed (1542) 1542 Prototype IDs (9) 180 Alien Tech Used (0) 0 Bonus (1671) 1671 TOTAL SCORE: 8998 Bonus ------- Follower Combat Kills 671 Met Warlord at Base 500 MAIN.C Attacked Warlord 500 Cogmind --------- Core Integrity 0/1000 Matter 285/300 Energy 67/100 System Corruption 4% Temperature Cool (0) Movement Flying (35) Location -4/Proximity Caves Parts ------- > --- POWER (3) -------- (None) > --- PROPULSION (4) --- VTOL Module > --- UTILITY (6) ------ (None) > --- WEAPON (4) ------- (None) > --- INVENTORY (5) ---- VTOL Module Energy Well (350) Mass Driver Peak State ------------ > --- POWER ------------ Backup Power III Backup Power III Backup Power III > --- PROPULSION ------- Cesium-ion Thruster Cesium-ion Thruster Cesium-ion Thruster Nuclear Pulse Thruster > --- UTILITY ---------- Advanced Heat Sink Advanced Heat Sink Seismic Detector Propulsion Shielding Focal Shield Point Defense System > --- WEAPON ----------- Autogun Battle Rifle Plasma Lance > --- INVENTORY -------- VTOL Module VTOL Module Xenon Bombardment Thruster Energy Well Mass Driver [Rating: 59] Favorites ----------- Power Backup Power III Engine Backup Power III Power Core Light Nuclear Core Propulsion VTOL Module Treads Light Treads Leg Aluminum Leg Wheel Compact Wheel Hover Unit Hover Unit Flight Unit VTOL Module Utility Seismic Detector Device Seismic Detector Storage Medium Storage Unit Protection Hardened Light Armor Plating Weapon Great Axe Energy Gun Improved EM Shotgun Energy Cannon EM Pulse Cannon Ballistic Gun Light Assault Rifle Ballistic Cannon Light Cannon Slashing Weapon Great Axe Piercing Weapon Plasma Lance Build | -11 -10 -10 -9 -8 -8 -7 -7 -7 -6 -5 -5 -5 -5 -4 ------- Run | Yrd Mat Min Mat Mat Sto Fac Was Fac Fac Fac Upp Upp War Pro Slots Evolved 10 | . . . 2 2 . 2 . . 2 2 . . . . Power 2 | . . . . . . . . . 2 . . . . . Propulsion 2 | . . . 1 1 . . . . . . . . . . Utility 4 | . . . . 1 . 1 . . . 2 . . . . Weapon 2 | . . . 1 . . 1 . . . . . . . . Parts Attached 112 | 6 11 . 9 22 10 2 5 14 9 6 1 1 14 2 Power 14 | 1 . . 1 2 1 . . 1 4 1 . . 3 . Engine 12 | 1 . . 1 2 1 . . 1 3 . . . 3 . Core 2 | . . . . . . . . . 1 1 . . . . Reactor . | . . . . . . . . . . . . . . . Propulsion 41 | 2 8 . 4 5 3 . 1 5 2 4 . . 5 2 Treads 5 | . . . . 2 3 . . . . . . . . . Leg 5 | . 5 . . . . . . . . . . . . . Wheel 5 | 2 3 . . . . . . . . . . . . . Hover 7 | . . . 4 3 . . . . . . . . . . Flight 19 | . . . . . . . 1 5 2 4 . . 5 2 Utility 25 | 1 2 . 1 6 3 1 . 3 2 . . 1 5 . Device 15 | . 1 . 1 3 2 1 . 1 1 . . 1 4 . Storage 3 | 1 1 . . . 1 . . . . . . . . . Processor . | . . . . . . . . . . . . . . . Hackware . | . . . . . . . . . . . . . . . Protection 7 | . . . . 3 . . . 2 1 . . . 1 . Artifact . | . . . . . . . . . . . . . . . Weapon 32 | 2 1 . 3 9 3 1 4 5 1 1 1 . 1 . Energy Gun 11 | 2 1 . 2 1 2 . 2 1 . . . . . . Energy Cannon 2 | . . . . . 1 1 . . . . . . . . Ballistic Gun 6 | . . . . 3 . . . 1 . 1 1 . . . Ballistic Cannon 5 | . . . 1 1 . . 2 1 . . . . . . Launcher . | . . . . . . . . . . . . . . . Special Weapon . | . . . . . . . . . . . . . . . Impact Weapon . | . . . . . . . . . . . . . . . Slashing Weapon 7 | . . . . 4 . . . 2 1 . . . . . Piercing Weapon 1 | . . . . . . . . . . . . . 1 . Special Melee Weapon . | . . . . . . . . . . . . . . . Unidentified Prototypes 7 | . . . . 1 2 . . 2 1 . . . 1 . Parts Lost 49 | . 3 . 4 10 . . 6 3 . 6 . . . 17 Power 7 | . . . 1 1 . . . 1 . 1 . . . 3 Propulsion 20 | . 2 . 1 5 . . 2 2 . 3 . . . 5 Utility 12 | . . . . 2 . . 2 . . 2 . . . 6 Weapon 10 | . 1 . 2 2 . . 2 . . . . . . 3 Highest Loss Streak 17 | . 1 . 3 6 . . 5 3 . 6 . . . 17 To Critical Strikes 1 | . . . . 1 . . . . . . . . . . Average Slot Usage (%) 64 | . 81 100 82 57 95 100 23 38 48 28 51 52 69 85 Engine 6 | . 14 14 10 6 9 7 1 . 3 1 . . 9 15 Treads 5 | . . . . 3 31 30 4 . . . . . . . Wheel 1 | . 12 28 5 . . . . . . . . . . . Hover 1 | . . . 21 8 . . . . . . . . . . Flight 11 | . . . . . . . 4 18 19 10 23 23 23 20 Device 10 | . 3 14 13 14 9 15 2 3 12 7 5 5 15 26 Storage 2 | . 14 14 2 . 2 7 1 . . . . . . . Protection 4 | . . . . 5 15 7 1 5 6 1 . . 1 4 Energy Gun 5 | . 27 28 26 5 6 7 4 . . . . . . . Energy Cannon 1 | . . . . . 5 15 2 . . . . . . . Ballistic Gun 5 | . . . . 3 14 7 1 3 . . 10 11 11 9 Slashing Weapon 2 | . . . . 3 . . . 2 5 5 5 5 4 . Peak Build Rating 59 | 6 9 9 12 24 22 28 28 25 33 25 22 27 59 59 Average Rating 21 | 4 6 9 10 13 18 27 11 17 24 14 21 21 35 54 On Entrance 18 | . 6 9 9 12 15 22 28 1 20 25 20 22 27 59 Naked Turns 66 | . . . . . . . 40 24 . . . . . 2 Heaviest Build 41 | 11 28 28 31 21 34 41 41 16 16 13 15 16 21 21 Greatest Support 80 | 32 32 20 20 40 80 80 80 18 16 16 16 16 21 21 Greatest Overweight (x) 8 | . 8 1 1 3 . . 3 . . 1 . . 1 . Average Overweight (x) . | . . 1 . . . . . . . . . . . . Largest Inventory Capacity 15 | 8 15 15 15 5 10 10 10 5 5 5 5 5 5 5 Average Capacity 6 | 7 14 15 7 5 6 10 5 5 5 5 5 5 5 5 Most Carried 10 | 4 8 6 7 5 10 9 9 5 5 5 5 5 5 5 Average Carried 5 | 1 4 6 3 4 6 8 5 4 4 5 5 4 4 4 Final Capacity 15 | 8 15 15 5 5 10 10 5 5 5 5 5 5 5 5 Final Carried 10 | 2 6 6 5 5 10 9 4 5 5 5 5 5 5 3 Class Distribution -------------------- 37% | Scavenger-Sprinter 21% | Mutant 12% | Sprinter 12% | Scavenger-Tank 9% | Commander-Tank 3% | Scavenger-Gunner Dominant Class ---------------- Mutant | -10/Materials Mutant | -10/Mines Scavenger-Gunner | -9/Materials Mutant | -8/Materials Commander-Tank | -8/Storage Scavenger-Tank | -7/Factory Sprinter | -7/Waste Sprinter | -7/Factory Scavenger-Sprinter | -6/Factory Mutant | -5/Factory Scavenger-Sprinter | -5/Upper Caves Scavenger-Sprinter | -5/Upper Caves Scavenger-Sprinter | -5/Warlord Scavenger-Sprinter | -4/Proximity Caves Resources | -11 -10 -10 -9 -8 -8 -7 -7 -7 -6 -5 -5 -5 -5 -4 ----------- Run | Yrd Mat Min Mat Mat Sto Fac Was Fac Fac Fac Upp Upp War Pro Matter Collected 1464 | 219 121 . 108 210 172 . 70 115 165 66 12 . 150 56 Remotely . | . . . . . . . . . . . . . . . Salvage Created 3210 | . 287 . 434 417 216 . . 243 1005 66 292 84 . 166 Parts 134 | . 22 . 19 31 4 . . 13 31 5 7 . . 2 Haulers Intercepted 2 | . . . 1 . 1 . . . . . . . . . Recyclers Shooed 8 | . . . 1 1 1 . . . 3 2 . . . . Parts Field Recycled . | . . . . . . . . . . . . . . . Retrieved Matter . | . . . . . . . . . . . . . . . Parts Self-Destructed 8 | . . . . . . . . . . . 3 . . 5 Prevented . | . . . . . . . . . . . . . . . Kills | -11 -10 -10 -9 -8 -8 -7 -7 -7 -6 -5 -5 -5 -5 -4 ------- Run | Yrd Mat Min Mat Mat Sto Fac Was Fac Fac Fac Upp Upp War Pro Combat Hostiles Destroyed 36 | . 5 . 5 11 3 . . 4 4 3 . . . 1 Melee 19 | . 1 . . 7 . . . 4 4 3 . . . . Guns 12 | . 4 . 5 2 . . . . . . . . . 1 Cannons 4 | . . . . 2 2 . . . . . . . . . AOE 1 | . . . . . 1 . . . . . . . . . Classes Destroyed 11 | . 3 . 3 2 . . . . 3 . . . . . Worker 6 | . . . . . . . . . 6 . . . . . Tunneler 2 | . 1 . . . . . . . 1 . . . . . Hauler 2 | . . . 1 . 1 . . . . . . . . . Recycler 7 | . . . 1 1 . . . 1 4 . . . . . Watcher 8 | . 2 . 2 1 . . . 1 2 . . . . . Swarmer 13 | . . . . 6 . . . 3 . 3 . . . 1 Grunt 13 | . 5 . 2 2 2 . . . 2 . . . . . Brawler 1 | . . . . 1 . . . . . . . . . . Duelist 1 | . . . . . . . . . 1 . . . . . Sentry 7 | . . . 3 2 1 . . 1 . . . . . . Behemoth 1 | . . . . . . . . . 1 . . . . . Best Kill Streak 8 | . 2 . 6 8 1 . . 4 3 2 . . . 1 Combat Bots Only 7 | . 2 . 3 7 1 . . 3 2 2 . . . 1 Max Kills in Single Turn 1 | . 1 . 1 1 1 . . 1 1 1 . . . 1 Gunslinging . | . . . . . . . . . . . . . . . Exploded 1 | . . . . . 1 . . . . . . . . . Melee 1 | . 1 . . 1 . . . 1 1 1 . . . . Uniques/NPCs Destroyed . | . . . . . . . . . . . . . . . Combat | -11 -10 -10 -9 -8 -8 -7 -7 -7 -6 -5 -5 -5 -5 -4 -------- Run | Yrd Mat Min Mat Mat Sto Fac Was Fac Fac Fac Upp Upp War Pro Hostile Shots Fired 520 | . 50 . 29 128 28 . 6 83 22 49 . 3 6 116 Missed 164 | . 16 . 9 31 8 . . 27 11 14 . 1 3 44 Damage Taken 5251 | . 460 . 284 1029 341 . 296 502 270 514 . 20 57 1478 Core 2265 | . 162 . 50 509 31 . 137 219 111 277 . . 39 730 Absorbed by Shields . | . . . . . . . . . . . . . . . Redirected to Shielding 43 | . . . . . . . . . . . . . . 43 Ignored by Resistances 49 | . . . . . . . . . . . . . 11 38 Regen/Repaired (Parts) 56 | . . . . . . . . . . . . . 56 . Core Remaining (%) 59 | 100 . 35 87 . 1 . . 49 86 . . . . . Volleys Fired 129 | . 36 . 18 15 18 . 29 3 . 2 . . . 8 Largest 4 | . 2 . 3 3 3 . 4 1 . 1 . . . 2 Hottest 191 | . 90 . 146 146 148 . 191 28 . 23 . . . 48 Shots Fired 264 | . 65 . 47 41 53 . 37 3 . 2 . . . 16 Gun 220 | . 65 . 47 21 43 . 23 3 . 2 . . . 16 Cannon 44 | . . . . 20 10 . 14 . . . . . . . Launcher . | . . . . . . . . . . . . . . . Special . | . . . . . . . . . . . . . . . Kinetic 85 | . . . . 20 34 . 10 3 . 2 . . . 16 Thermal 106 | . 50 . 29 21 6 . . . . . . . . . Explosive . | . . . . . . . . . . . . . . . Electromagnetic 73 | . 15 . 18 . 13 . 27 . . . . . . . Robot Hit Streak 17 | . 5 . 17 5 7 . 13 2 . 3 . . . 4 Robot Miss Streak 7 | . 5 . 7 4 3 . 2 6 . 1 . . . 1 Penetration Max . | . . . . . . . . . . . . . . . Secondary Targets . | . . . . . . . . . . . . . . . Shots Hit Robots 257 | . 37 . 29 39 36 . 35 16 32 8 5 3 . 17 Core Hits 103 | . 16 . 15 15 13 . 5 10 15 3 4 1 . 6 Critical Kills . | . . . . . . . . . . . . . . . Critical Parts Destroyed . | . . . . . . . . . . . . . . . Critical Strikes 12 | . . . 4 4 . . . 2 2 . . . . . Burn 4 | . . . 3 1 . . . . . . . . . . Corrupt 1 | . . . 1 . . . . . . . . . . . Sever 7 | . . . . 3 . . . 2 2 . . . . . Melee Attacks 131 | . . . . 27 . . . 20 42 18 5 3 . 16 Impact . | . . . . . . . . . . . . . . . Slashing 115 | . . . . 27 . . . 20 42 18 5 3 . . Piercing 16 | . . . . . . . . . . . . . . 16 Sneak Attacks 18 | . . . . 2 . . . 1 14 1 . . . . Combat Hostiles . | . . . . . . . . . . . . . . . Follow-up Attacks . | . . . . . . . . . . . . . . . Damage Inflicted 6882 | . 477 . 503 1173 550 18 220 648 1730 352 373 256 . 582 Guns 1564 | . 472 . 433 182 273 . 38 28 . 17 . . . 121 Cannons 621 | . . . . 207 232 . 182 . . . . . . . Explosions 101 | . . . 56 . 45 . . . . . . . . . Melee 4559 | . . . . 784 . . . 620 1730 335 373 256 . 461 Ramming 37 | . 5 . 14 . . 18 . . . . . . . . Kinetic 724 | . . . . 207 158 . 193 28 . 17 . . . 121 Thermal 944 | . 353 . 288 182 121 . . . . . . . . . Explosive . | . . . . . . . . . . . . . . . Electromagnetic 618 | . 119 . 201 . 271 . 27 . . . . . . . Impact . | . . . . . . . . . . . . . . . Slashing 4098 | . . . . 784 . . . 620 1730 335 373 256 . . Piercing 461 | . . . . . . . . . . . . . . 461 Highest Corruption 4 | . . . . . . . . . . . . . . 4 Average Corruption 4 | . . . . . . . . . . . . . . 4 Corruption Purged . | . . . . . . . . . . . . . . . Corruption Blocked . | . . . . . . . . . . . . . . . Overload Shots . | . . . . . . . . . . . . . . . Overflow Damage 743 | . . . . 108 . . . 5 291 60 75 97 . 107 Projectiles 2 | . . . . 2 . . . . . . . . . . Explosions . | . . . . . . . . . . . . . . . Melee 741 | . . . . 106 . . . 5 291 60 75 97 . 107 Knockbacks . | . . . . . . . . . . . . . . . Impact . | . . . . . . . . . . . . . . . Kinetic . | . . . . . . . . . . . . . . . Secondary . | . . . . . . . . . . . . . . . Self-Inflicted Damage 29 | . 2 . 6 . 21 . . . . . . . . . Shots 1 | . . . . . 1 . . . . . . . . . Rammed 8 | . 1 . 4 . 2 1 . . . . . . . . Targets Rammed 8 | . 1 . 4 . 2 1 . . . . . . . . Kicked . | . . . . . . . . . . . . . . . Crushed . | . . . . . . . . . . . . . . . Highest Temperature 421 | . 421 . 126 44 122 . 27 9 . 6 . . . . Average Temperature 92 | . 156 . 38 11 42 . 14 5 . 6 . . . . Received Heat Transfer 1128 | . 273 . 105 189 153 . . 132 84 . . . 9 183 Effects 4 | . 4 . . . . . . . . . . . . . Shutdowns 1 | . 1 . . . . . . . . . . . . . Energy Bleed 1 | . 1 . . . . . . . . . . . . . Interference 2 | . 2 . . . . . . . . . . . . . Siege Activations . | . . . . . . . . . . . . . . . Robots Corrupted . | . . . . . . . . . . . . . . . Combat Hostiles . | . . . . . . . . . . . . . . . Parts Fried . | . . . . . . . . . . . . . . . Impact Corruptions . | . . . . . . . . . . . . . . . Robots Melted . | . . . . . . . . . . . . . . . Combat Hostiles . | . . . . . . . . . . . . . . . Parts Melted 6 | . 2 . 2 1 1 . . . . . . . . . Heat Transferred 2557 | . 977 . 901 444 235 . . . . . . . . . Parts Sabotaged . | . . . . . . . . . . . . . . . Parts Stolen . | . . . . . . . . . . . . . . . Parts Stripped . | . . . . . . . . . . . . . . . Power Chain Reactions 2 | . . . 1 . 1 . . . . . . . . . Alert | -11 -10 -10 -9 -8 -8 -7 -7 -7 -6 -5 -5 -5 -5 -4 ------- Run | Yrd Mat Min Mat Mat Sto Fac Was Fac Fac Fac Upp Upp War Pro Peak Influence 539 | . 199 77 221 190 539 241 84 240 325 139 . . . . Initial 220 | . . 77 29 92 . 220 84 . 117 119 . . . . Average 168 | . 100 77 139 112 300 236 20 150 198 118 . . . . Maximum Alert Level 2 | . . . 1 . 2 1 . 1 1 . . . . . Low Security (%) 60 | 100 100 100 76 100 19 . 100 52 48 100 . . . . Level 1 34 | . . . 23 . 51 100 . 47 51 . . . . . Level 2 4 | . . . . . 29 . . . . . . . . . Level 3 . | . . . . . . . . . . . . . . . Level 4 . | . . . . . . . . . . . . . . . Level 5 . | . . . . . . . . . . . . . . . High Security . | . . . . . . . . . . . . . . . Max Security . | . . . . . . . . . . . . . . . Squads Dispatched 10 | . 2 . 1 1 2 . . . 3 . . . . 1 Investigation 3 | . 1 . . 1 1 . . . . . . . . . Extermination . | . . . . . . . . . . . . . . . Reinforcement 6 | . 1 . 1 . 1 . . . 3 . . . . . Assault 1 | . . . . . . . . . . . . . . 1 Garrison . | . . . . . . . . . . . . . . . Intercept . | . . . . . . . . . . . . . . . Searches Triggered . | . . . . . . . . . . . . . . . Construction Impeded . | . . . . . . . . . . . . . . . Haulers Reinforced 2 | . . . . . . . . . 2 . . . . . Active Scanning Responses . | . . . . . . . . . . . . . . . Cargo Convoy Interrupts . | . . . . . . . . . . . . . . . Stealth | -11 -10 -10 -9 -8 -8 -7 -7 -7 -6 -5 -5 -5 -5 -4 --------- Run | Yrd Mat Min Mat Mat Sto Fac Was Fac Fac Fac Upp Upp War Pro Distress Signals 6 | . . . . 1 4 . . . 1 . . . . . Communications Jammed . | . . . . . . . . . . . . . . . Distress Signals . | . . . . . . . . . . . . . . . Times Spotted 145 | . 10 . 7 16 21 . 6 9 14 4 3 1 34 20 Peak Tracking Total 12 | . 3 . 3 5 6 . 4 4 4 5 3 2 11 12 Tactical Retreats 12 | . . . . 2 1 . . 2 2 . . . 2 3 Traps | -11 -10 -10 -9 -8 -8 -7 -7 -7 -6 -5 -5 -5 -5 -4 ------- Run | Yrd Mat Min Mat Mat Sto Fac Was Fac Fac Fac Upp Upp War Pro Traps Triggered 4 | . . . . . 1 1 . . 2 . . . . . Indirectly . | . . . . . . . . . . . . . . . Trap Hack Attempts . | . . . . . . . . . . . . . . . Triggered . | . . . . . . . . . . . . . . . Disarmed . | . . . . . . . . . . . . . . . Reprogrammed . | . . . . . . . . . . . . . . . Reused . | . . . . . . . . . . . . . . . Traps Extracted . | . . . . . . . . . . . . . . . Installed . | . . . . . . . . . . . . . . . Triggered 11 | . . . . . . . . . . . . . 11 . Machines | -11 -10 -10 -9 -8 -8 -7 -7 -7 -6 -5 -5 -5 -5 -4 ---------- Run | Yrd Mat Min Mat Mat Sto Fac Was Fac Fac Fac Upp Upp War Pro Machines Disabled 1 | . . . 1 . . . . . . . . . . . Max in Single Turn 1 | . . . 1 . . . . . . . . . . . Garrison Access 2 | . . . . . 1 . . 1 . . . . . . Machines Repaired . | . . . . . . . . . . . . . . . Machines Dismantled . | . . . . . . . . . . . . . . . Machines Sabotaged . | . . . . . . . . . . . . . . . Overloaded Fab Kills . | . . . . . . . . . . . . . . . Hacking | -11 -10 -10 -9 -8 -8 -7 -7 -7 -6 -5 -5 -5 -5 -4 --------- Run | Yrd Mat Min Mat Mat Sto Fac Was Fac Fac Fac Upp Upp War Pro Machines Accessed 19 | . 2 . 2 1 1 2 . 5 6 . . . . . Terminals 15 | . 2 . 2 1 . 2 . 3 5 . . . . . Fabricators 2 | . . . . . . . . 1 1 . . . . . Repair Stations . | . . . . . . . . . . . . . . . Recycling Units . | . . . . . . . . . . . . . . . Scanalyzers . | . . . . . . . . . . . . . . . Garrison Access 2 | . . . . . 1 . . 1 . . . . . . Total Hacks 40 | . 5 . 5 4 1 7 . 9 9 . . . . . Successful 14 | . 1 . 1 1 1 2 . 5 3 . . . . . Failed 26 | . 4 . 4 3 . 5 . 4 6 . . . . . Catastrophic 4 | . . . . . . 1 . 1 2 . . . . . Database Lockouts . | . . . . . . . . . . . . . . . Manual . | . . . . . . . . . . . . . . . Terminals 34 | . 5 . 5 4 . 7 . 6 7 . . . . . Fabricators 3 | . . . . . . . . 1 2 . . . . . Repair Stations . | . . . . . . . . . . . . . . . Recycling Units . | . . . . . . . . . . . . . . . Scanalyzers . | . . . . . . . . . . . . . . . Garrison Access 3 | . . . . . 1 . . 2 . . . . . . Terminal Hacks 10 | . 1 . 1 1 . 2 . 3 2 . . . . . Prototype ID Bank 1 | . . . . . . . . 1 . . . . . . Open DSF 2 | . . . . . . . . . 2 . . . . . Level Access Points 1 | . . . . . . . . 1 . . . . . . Branch Access Points 2 | . 1 . . . . 1 . . . . . . . . Alert Level 1 | . . . . . . . . 1 . . . . . . Unreport Threat 1 | . . . . 1 . . . . . . . . . . Zone Layout 2 | . . . 1 . . 1 . . . . . . . . Fabricator Hacks 2 | . . . . . . . . 1 1 . . . . . Network Status 1 | . . . . . . . . . 1 . . . . . Build 1 | . . . . . . . . 1 . . . . . . Repair Station Hacks . | . . . . . . . . . . . . . . . Recycling Unit Hacks . | . . . . . . . . . . . . . . . Scanalyzer . | . . . . . . . . . . . . . . . Garrison Access Hacks 2 | . . . . . 1 . . 1 . . . . . . Seal Access 2 | . . . . . 1 . . 1 . . . . . . Unauthorized Hacks . | . . . . . . . . . . . . . . . Terminals . | . . . . . . . . . . . . . . . Fabricators . | . . . . . . . . . . . . . . . Repair Stations . | . . . . . . . . . . . . . . . Recycling Units . | . . . . . . . . . . . . . . . Scanalyzers . | . . . . . . . . . . . . . . . Garrison Access . | . . . . . . . . . . . . . . . Data Cores Recovered 1 | . . . . . 1 . . . . . . . . . Used . | . . . . . . . . . . . . . . . Hacking Detections 13 | . 1 . 2 1 . 1 . 4 4 . . . . . Full Trace Events 2 | . 1 . 1 . . . . . . . . . . . Feedback Events . | . . . . . . . . . . . . . . . Feedback Blocked . | . . . . . . . . . . . . . . . Robot Schematics Acquired . | . . . . . . . . . . . . . . . Robots Built 2 | . . . . . . . . 2 . . . . . . Authchips . | . . . . . . . . . . . . . . . Time 116 | . . . . . . . . 116 . . . . . . Total Robot Build Rating 6 | . . . . . . . . 6 . . . . . . Part Schematics Acquired . | . . . . . . . . . . . . . . . Parts Built . | . . . . . . . . . . . . . . . Authchips . | . . . . . . . . . . . . . . . Time . | . . . . . . . . . . . . . . . Total Part Build Rating . | . . . . . . . . . . . . . . . Parts Repaired . | . . . . . . . . . . . . . . . Time . | . . . . . . . . . . . . . . . Parts Recycled . | . . . . . . . . . . . . . . . Recycled Matter . | . . . . . . . . . . . . . . . Retrieved Matter . | . . . . . . . . . . . . . . . Retrieved Components . | . . . . . . . . . . . . . . . Parts Scanalyzed . | . . . . . . . . . . . . . . . Part Schematics Acquired . | . . . . . . . . . . . . . . . Parts Damaged . | . . . . . . . . . . . . . . . Bothacking | -11 -10 -10 -9 -8 -8 -7 -7 -7 -6 -5 -5 -5 -5 -4 ------------ Run | Yrd Mat Min Mat Mat Sto Fac Was Fac Fac Fac Upp Upp War Pro Used RIF Installer . | . . . . . . . . . . . . . . . Robots Hacked . | . . . . . . . . . . . . . . . Non-combat . | . . . . . . . . . . . . . . . Combat . | . . . . . . . . . . . . . . . Robot Hacks Applied . | . . . . . . . . . . . . . . . Relay Couplers Released . | . . . . . . . . . . . . . . . Fabnet Peak Effective % . | . . . . . . . . . . . . . . . Robots Rewired . | . . . . . . . . . . . . . . . Allies Hacked . | . . . . . . . . . . . . . . . Hacks Repelled . | . . . . . . . . . . . . . . . Allies | -11 -10 -10 -9 -8 -8 -7 -7 -7 -6 -5 -5 -5 -5 -4 -------- Run | Yrd Mat Min Mat Mat Sto Fac Was Fac Fac Fac Upp Upp War Pro Total Allies 15 | . . . . . 10 . . 2 3 . . . . . Largest Group 10 | . . . . . 10 3 3 2 5 . . . . . Highest-Rated Group 173 | . . . . . 173 48 48 48 141 . . . . . Highest-Rated Ally 31 | . . . . . 29 16 16 24 31 . . . . . Total Orders . | . . . . . . . . . . . . . . . Ally Attacks 223 | . . . . . 106 . 63 . 54 . . . . . Total Damage 3252 | . . . . . 1455 . 752 . 1045 . . . . . Kills 28 | . . . . . 21 . 2 . 5 . . . . . Allies Corrupted . | . . . . . . . . . . . . . . . Allies Melted . | . . . . . . . . . . . . . . . Intel | -11 -10 -10 -9 -8 -8 -7 -7 -7 -6 -5 -5 -5 -5 -4 ------- Run | Yrd Mat Min Mat Mat Sto Fac Was Fac Fac Fac Upp Upp War Pro Robot Analysis Total . | . . . . . . . . . . . . . . . Derelict Logs Recovered 2 | . . . . . . . . . . . . 1 . 1 Drone Launches . | . . . . . . . . . . . . . . . Drone Recoveries . | . . . . . . . . . . . . . . . Exploration | -11 -10 -10 -9 -8 -8 -7 -7 -7 -6 -5 -5 -5 -5 -4 ------------- Run | Yrd Mat Min Mat Mat Sto Fac Was Fac Fac Fac Upp Upp War Pro Turns Passed 4293 | 49 320 28 224 401 494 247 213 375 725 86 226 114 558 233 Spaces Moved 4675 | 38 135 30 205 186 257 152 293 466 1196 70 313 390 493 451 Core 152 | 5 4 . . 19 . . 77 44 . 3 . . . . Treads 467 | . . . . 45 257 152 13 . . . . . . . Legs 33 | . 33 . . . . . . . . . . . . . Wheels 206 | 33 98 30 45 . . . . . . . . . . . Hover 282 | . . . 160 122 . . . . . . . . . . Flight 3535 | . . . . . . . 203 422 1196 67 313 390 493 451 Fastest Speed 25 | 50 95 95 52 50 160 160 25 26 30 26 26 26 26 27 Average Speed 50 | 93 135 95 62 120 160 160 38 32 30 34 26 26 26 27 Slowest Speed 450 | 100 450 95 95 240 160 160 200 50 32 115 26 26 106 35 Overloaded Moves . | . . . . . . . . . . . . . . . Propulsion Burnouts . | . . . . . . . . . . . . . . . Robots Hopped 12 | . . . . . . . . . . . . . 12 . Cave-ins Triggered . | . . . . . . . . . . . . . . . Exploration Rate (%) 29 | 3 25 9 23 14 40 7 81 16 25 4 52 59 54 37 Regions Visited 14 Branch Regions 6 Pre-discovered Areas 1 | . . . . . . . . . . . . 1 . . Known Exits Taken 2 | . 1 . . . . . . 1 . . . . . . Unknown Exits Taken 10 | 1 . 1 1 1 1 . . . 1 1 1 1 1 . Scrap Searched 5 | . . . . . . . . . . . . 3 . 2 Spaces Dug 2 | . . . . . . . . . . . . . . 2 Terrain Destroyed 9 | . . . . . 7 . . . . . . . . 2 Melee 2 | . . . . . . . . . . . . . . 2 Projectile . | . . . . . . . . . . . . . . . AOE 7 | . . . . . 7 . . . . . . . . . Terrain Rammed . | . . . . . . . . . . . . . . . Walls Destroyed . | . . . . . . . . . . . . . . . Machines Disabled . | . . . . . . . . . . . . . . . Actions | -11 -10 -10 -9 -8 -8 -7 -7 -7 -6 -5 -5 -5 -5 -4 --------- Run | Yrd Mat Min Mat Mat Sto Fac Was Fac Fac Fac Upp Upp War Pro Total 6177 | 51 209 29 263 285 311 156 359 650 1491 95 447 397 910 524 Wait 999 | . 7 . 15 9 1 . 28 135 231 . 129 . 397 47 Move 4643 | 37 134 29 204 185 256 152 292 465 1195 69 312 389 473 451 Hop 7 | . . . . . . . . . . . . . 7 . Pick Up 75 | 8 14 . 9 15 10 1 1 6 4 . . 2 5 . Fast Attach 42 | . . . . 6 8 . 2 9 5 6 1 1 4 . Attach 58 | 6 10 . 9 14 . 2 2 5 4 . . . 4 2 Detach 10 | . . . . . . . 1 2 3 . . . 4 . Swap 12 | . 1 . . 2 2 . 1 . . . . . 6 . Drop 62 | . 6 . 4 12 13 . 3 5 7 . . 2 10 . Fire 129 | . 36 . 18 15 18 . 29 3 . 2 . . . 8 Melee 131 | . . . . 27 . . . 20 42 18 5 3 . 16 Ram 5 | . 1 . 4 . . . . . . . . . . . Kick . | . . . . . . . . . . . . . . . Crush 3 | . . . . . 2 1 . . . . . . . . Escape Stasis . | . . . . . . . . . . . . . . . Rewire 1 | . . . . . 1 . . . . . . . . . Trap . | . . . . . . . . . . . . . . . Miscellaneous . | . . . . . . . . . . . . . . . Route ------- -11/Scrapyard -10/Materials -10/Mines -9/Materials -8/Materials -8/Storage -7/Factory (discovered 2 exits: Low x2) -7/Waste -7/Factory (discovered 4 exits: *Fac x4) -6/Factory -5/Factory -5/Upper Caves -5/Upper Caves -5/Warlord -4/Proximity Caves History --------- Turn | Location | Event 16 | -11/Scrapyard | Discovered new exit (range 16) 50 | -11/Scrapyard | Entered Materials 65 | -10/Materials | Identified exit to Mines 218 | -10/Materials | Core integrity fell below 50% 308 | -10/Materials | Build established: Mutant 370 | -10/Materials | Entered Mines 393 | -10/Mines | Discovered new exit (range 5) 398 | -10/Mines | Entered Materials 398 | -9/Materials | Evolved 2 slots: Propulsion x1, Weapon x1 571 | -9/Materials | Lost 3 parts (1n2w) 610 | -9/Materials | Discovered new exit (range 3) 622 | -9/Materials | Entered another Materials area 622 | -8/Materials | Evolved 2 slots: Propulsion x1, Utility x1 725 | -8/Materials | Lost 4 parts (3n1w) 882 | -8/Materials | Core integrity fell below 50% 895 | -8/Materials | Met 7R-MNS 906 | -8/Materials | Core integrity fell below 20% 915 | -8/Materials | Lost 6 parts (1p2n2u1w) 942 | -8/Materials | Destroyed 7 combat bots 995 | -8/Materials | Discovered new exit (range 3) 1023 | -8/Materials | Entered Storage 1060 | -8/Storage | Assisted by bots powering up and referring to "LRC-V3" 1379 | -8/Storage | Build established: Commander-Tank 1474 | -8/Storage | Discovered new exit (range 5) 1517 | -8/Storage | Entered Factory 1517 | -7/Factory | Accompanied by 3 allies 1517 | -7/Factory | Evolved 2 slots: Utility x1, Weapon x1 1553 | -7/Factory | Identified exit to Lower Caves 1748 | -7/Factory | Build established: Scavenger-Tank 1764 | -7/Factory | Sucked down chute 1764 | -7/Factory | Entered Waste 1776 | -7/Waste | Spotted C-40 Crusher 1784 | -7/Waste | Spotted C-40 Crusher 1790 | -7/Waste | Crushed by Compactor (1 part destroyed, 2 dropped) 1793 | -7/Waste | Crushed by Compactor (1 part destroyed, 1 dropped) 1795 | -7/Waste | Crushed by Compactor (1 part destroyed, 2 dropped) 1796 | -7/Waste | Crushed by Compactor (1 part destroyed, 2 dropped) 1798 | -7/Waste | Crushed by Compactor (1 part destroyed) 1804 | -7/Waste | 3 allies followed down the chute 1829 | -7/Waste | Lost 5 parts (2n2u1w) 1830 | -7/Waste | Allies destroyed C-40 Crusher 1853 | -7/Waste | Spotted C-40 Crusher 1944 | -7/Waste | Spotted C-40 Crusher 1944 | -7/Waste | Spotted C-40 Crusher 1945 | -7/Waste | Spotted C-40 Crusher 1951 | -7/Waste | Crushed by Compactor (1 part destroyed, 1 dropped) 1970 | -7/Waste | Discovered new exit (range 13) 1977 | -7/Waste | Entered Factory 2123 | -7/Factory | Core integrity fell below 50% 2142 | -7/Factory | Identified exit to Factory 2151 | -7/Factory | Lost 3 parts (1p2n) 2330 | -7/Factory | Fabricated X-57 Shotgunner (x2) 2352 | -7/Factory | Entered another Factory area 2352 | -6/Factory | Accompanied by 2 allies 2352 | -6/Factory | Evolved 2 slots: Power x2 2453 | -6/Factory | Allied Derelicts emerged from ambush trap array 2458 | -6/Factory | Identified exit to DSF 2657 | -6/Factory | Spotted B-75 Beast 2717 | -6/Factory | Destroyed B-75 Beast 2772 | -6/Factory | Build established: Scavenger-Sprinter 2836 | -6/Factory | Lost 3 allies 3076 | -6/Factory | Discovered new exit (range 4) 3077 | -6/Factory | Entered another Factory area 3077 | -5/Factory | Evolved 2 slots: Utility x2 3113 | -5/Factory | Discovered new exit (range 15) 3144 | -5/Factory | Lost 6 parts (1p3n2u) 3163 | -5/Factory | Entered Upper Caves 3386 | -5/Upper Caves | Discovered new exit (range 13) 3389 | -5/Upper Caves | Entered another Upper Caves area 3498 | -5/Upper Caves | Discovered new exit (range 16) 3503 | -5/Upper Caves | Entered Warlord 3541 | -5/Warlord | Met Warlord 3563 | -5/Warlord | Warlord's base attacked by MAIN.C 3912 | -5/Warlord | Warlord forces counterattacked 3915 | -5/Warlord | Spotted Executioner 3933 | -5/Warlord | Spotted Striker 3971 | -5/Warlord | Spotted Striker 3974 | -5/Warlord | P-70 Sage assimilated allied VZ-GZJ(g) 3991 | -5/Warlord | Spotted Executioner 4023 | -5/Warlord | Lost 12 allies 4056 | -5/Warlord | Discovered new exit (range 14) 4061 | -5/Warlord | Entered Proximity Caves 4165 | -4/Proximity Caves | Attracted the attention of an 0b10 outpost 4197 | -4/Proximity Caves | Learned Research stockpile data 4280 | -4/Proximity Caves | Core integrity fell below 50% 4291 | -4/Proximity Caves | Core integrity fell below 20% 4294 | -4/Proximity Caves | Destroyed by B-60 Warrior with Heavy Mace Last Messages --------------- 04269_ Nuclear Pulse Thruster destroyed. 04270_ Point Defense System destroyed. 04272_ Backup Power III destroyed. 04273_ Adv. Heat Sink destroyed. 04273_ Seismic Detector destroyed. 04273_ G-67 Veteran destroyed. 04273_ Adv. Heat Sink destroyed. 04273_ Drone sends a signal. 04281_ Focal Shield destroyed. 04283_ Adv. Heat Sink fries itself beyond repair. 04284_ Propulsion Shielding destroyed. 04284_ Cesium-ion Thruster destroyed. 04285_ Flexi-carbon Leg fries itself beyond repair. 04285_ Adv. Heat Sink fries itself beyond repair. 04288_ Slug penetrates Wall. 04289_ Field Laser fries itself beyond repair. 04290_ Plasma Lance destroyed. 04290_ System corrupted by crushing effect (+4). 04292_ Slug penetrates Wall. 04293_ Xenon Bombardment Thruster destroyed. Map ----- +----------------------------------------------------+ | | | ?????????????????????????????????????????????????? | | ?????????????????????????????????????????????????? | | ?????????????????????????????????????????????????? | | ?????????????????????????????????????????????????? | | ?????????????????????????????????????????????????? | | ?????????????????????????????????????????????????? | | ?????????????????????????????????????????????????? | | ?????????????????????????????????????????????????? | | ?????????????????????????????????????????????????? | | ?????????????????????????????????????????????????? | | ?????????????????????????????????????????????????? | | ?????????????????????????????????????????????????? | | ?????????????????????????????????????????????????? | | ?????????????????????????????????????????????????? | | ?????????????????????????????????????????????????? | | ??????????????????####??????????????????????###### | | ?????????????????## #####??????????????????# # | | ????????????????## ## ##?????????????????# | | ????????????????# ## #????????????###### | | ????????????????# ## ####???????### | | ???????????????## ######### | | ???????????????# | | ???????????????# h % | | ???????????????## ############## # | | ????????????????# b@b#### ##### ## | | ????????????????# g ## ##? | | ????????????????## g g %% ##?? | | ?????????????????## % ##### ##??? | | ??????????????????## ## ##??## ###???? | | ???????????????????# #### %#### #???#####?????? | | ???????????????????# ##??## #?## #?????????????? | | ???????????????????######### ## ##????????###### | | ?????????????????????## ### ##??????# | | ?????????????????????# ## ##??????# ###### | | ?????????????????????# ###????????????? | | ?????????????????????## !%####?????????# | | ??????????????????????### [! ##????????# | | ????????????????????????## #????????# | | ?????????????????????????#### ##???????# | | ????????????????????????????## # #????? | | ?????????????????????????????# #????? | | ?????????????????????????????## ##????? | | ????????????????????????#######% #?????? | | ????????????????????????# ?? | | ???????????????????????## ? | | ????????????????????#### ######### ## | | ???????????????????## ##???????# ?# | | ????????????????#### ##??????? ?? | | ???????????????## ##?????? ### ? | +----------------------------------------------------+ Best States ------------- Heat Dissipation 78 Energy Generation 23 Energy Capacity 280 Matter Stores 300 Matter Capacity 300 Sight Range 16 Robot Scan Range 15 Terrain Scan Density 10 Additional Mass Support 6 Armor Coverage 300 Resistance: KI 20 Propulsion Shielding 33 Point Defense Rating 80 Weapon Cycling 15 Evasion (%) 65 Recoil Reduction 4 Item Schematics ----------------- None Robot Schematics ------------------ None Fabricated ------------ X-57 Shotgunner | x2 | -7/Factory | Preloaded Alien Tech Used ----------------- None Achievements -------------- A Powerful Ally? Can't Catch Me Charge!!! Slippery One Universal Adapter Challenges ------------ None Game ------ Seed HypervelocityTechShearcannon Manual? 0 Play Time 01:38:41 Cumulative 37.7 hours Start 2025.02.20 @ 05:34:26 End 2025.02.20 @ 07:15:49 Sessions 1 Manual Loads 0 Difficulty Rogue Special Mode None Game No. 35 Rogue 35 Adventurer 0 Explorer 0 Win Type - Total 0 Types 0/0/0/0/0/0/0/0/0 Lore% 3 Gallery% 28 Achievement% 23 Wizard Run 0 Options --------- Layout 0 ASCII 0 Keyboard 0 Movement Mouse Keybinds 0 Fullscreen 2 Font 12/Smallcaps Map View 41x27 Zoom Use 99% Tactical HUD 1 Map Filters NONE Filters NONE Steam 1 RUN: 35c478a5-99c7-4dff-b9f8-7c3e7f5ca027